fUSD/lending_fUSD_20241215
["ID","MTS","AMOUNT","RATE_DAILY","PERIOD"]
[345443264,1734262240244,-164.34,0.00019895,3]
[345443266,1734262240254,-500.0,0.00019895,3]
[345443268,1734262240263,-708.81,0.00019895,3]
[345443270,1734262240273,-905.84,0.00019895,3]
[345443272,1734262240283,-500.0,0.00019895,3]
[345443274,1734262240293,-784.6,0.00019895,3]
[345443276,1734262240302,-1210.36,0.00019895,3]
[345443278,1734262240311,-500.0,0.00019895,3]
[345443280,1734262240324,-1311.36,0.00019895,3]
[345443282,1734262240334,-500.0,0.00019895,3]
[345443284,1734262240343,-621.25,0.00019895,3]
[345443286,1734262240352,-573.44,0.00019895,3]
[345443288,1734262240363,-1823.37,0.00019895,3]
[345443290,1734262240372,-327.42,0.00019895,3]
[345443292,1734262240382,-500.0,0.00019895,3]
[345443294,1734262240391,-573.61,0.00019895,3]
[345443296,1734262240400,-500.0,0.00019895,3]
[345443298,1734262240410,-500.0,0.00019895,3]
[345443300,1734262240419,-1195.89,0.00019895,3]
[345443302,1734262240429,-500.0,0.00019895,3]
[345443304,1734262240438,-697.13,0.00019895,3]
[345443306,1734262240450,-1078.47,0.00019895,3]
[345443308,1734262240460,-214.87010291,0.00019895,3]
[345443310,1734262240469,-500.0,0.00019895,3]
[345443312,1734262240479,-1161.14,0.00019895,3]
[345443314,1734262240488,-1728.71,0.00019895,3]
[345443316,1734262240499,-747.88,0.00019895,3]
[345443318,1734262240508,-500.0,0.00019895,3]
[345443320,1734262240518,-500.0,0.00019895,3]
[345443322,1734262240527,-940.88,0.00019895,3]
[345443324,1734262240537,-4807.62,0.00019895,3]
[345443326,1734262240547,-500.0,0.00019895,3]
[345443328,1734262240556,-500.0,0.00019895,3]
[345443330,1734262240566,-796.15,0.00019895,3]
[345443332,1734262240577,-559.87,0.00019895,3]
[345443334,1734262240586,-500.0,0.00019895,3]
[345443336,1734262240595,-500.0,0.00019895,3]
[345443338,1734262240605,-664.3,0.00019895,3]
[345443340,1734262240614,-500.0,0.00019895,3]
[345443342,1734262240624,-500.0,0.00019895,3]
[345443344,1734262240633,-2270.47,0.00019895,3]
[345443346,1734262240642,-647.06,0.00019895,3]
[345443348,1734262240651,-500.0,0.00019895,3]
[345443350,1734262240660,-500.0,0.00019895,3]
[345443352,1734262240670,-1000.0,0.00019895,3]
[345443354,1734262240679,-511.56,0.00019895,3]
[345443356,1734262240688,-500.0,0.00019895,3]
[345443358,1734262240698,-500.0,0.00019895,3]
[345443360,1734262240707,-500.0,0.00019895,3]
[345443362,1734262240717,-1913.06,0.00019895,3]
[345443364,1734262240726,-500.0,0.00019896,3]
[345443366,1734262240735,-500.0,0.00019896,3]
[345443368,1734262240744,-500.0,0.00019896,3]
[345443370,1734262240753,-500.0,0.00019896,3]
[345443372,1734262240763,-500.0,0.00019896,3]
[345443374,1734262240772,-500.0,0.00019896,3]
[345443376,1734262240782,-500.0,0.00019896,3]
[345443378,1734262240791,-500.0,0.00019896,3]
[345443380,1734262240800,-500.0,0.00019896,3]
[345443382,1734262240809,-500.0,0.00019896,3]
[345443384,1734262240822,-500.0,0.00019896,3]
[345443386,1734262240832,-345.48,0.00019896,3]
[345443388,1734262240842,-500.0,0.00019896,3]
[345443390,1734262240851,-500.0,0.00019896,3]
[345443392,1734262240860,-500.0,0.00019896,3]
[345443394,1734262240870,-500.0,0.00019896,3]
[345443396,1734262240883,-500.0,0.00019896,3]
[345443398,1734262240892,-500.0,0.00019896,3]
[345443400,1734262240901,-637.07,0.00019896,3]
[345443402,1734262240911,-528.91,0.00019896,3]
[345443404,1734262240922,-500.0,0.00019896,3]
[345443406,1734262240932,-500.0,0.00019896,3]
[345443408,1734262240941,-500.0,0.00019896,3]
[345443410,1734262240953,-500.0,0.00019896,3]
[345443412,1734262240963,-500.0,0.00019896,3]
[345443414,1734262240972,-500.0,0.00019896,3]
[345443416,1734262240982,-500.0,0.00019896,3]
[345443418,1734262240992,-500.0,0.00019896,3]
[345443420,1734262241001,-500.0,0.00019896,3]
[345443422,1734262241010,-793.54,0.00019896,3]
[345443424,1734262241020,-500.0,0.00019896,3]
[345443426,1734262241029,-500.0,0.00019896,3]
[345443428,1734262241038,-500.0,0.00019896,3]
[345443430,1734262241047,-628.03,0.00019896,3]
[345443432,1734262241056,-500.0,0.00019896,3]
[345443434,1734262241067,-531.43,0.00019896,3]
[345443436,1734262241077,-500.0,0.00019896,3]
[345443438,1734262241086,-600.48,0.00019896,3]
[345443440,1734262241096,-500.0,0.00019896,3]
[345443442,1734262241105,-500.0,0.00019896,3]
[345443444,1734262241114,-61.41527108,0.00019896,3]
[345443446,1734262241129,-438.58472892,0.00019896,3]
[345443448,1734262241138,-344.01927108,0.00019896,3]
[345443449,1734262241149,-155.98072892,0.00019896,3]
[345443450,1734262241158,-139.67808958,0.00019896,3]
[345443451,1734262241169,-360.32191042,0.00019896,3]
[345443452,1734262241178,-616.32,0.00019896,3]
[345443453,1734262241187,-500.0,0.00019896,3]
[345443454,1734262241196,-500.0,0.00019896,3]
[345443455,1734262241205,-375.53975251,0.00019896,3]
[345443468,1734262241334,-124.46024749,0.00019896,3]
[345443470,1734262241344,-581.12,0.00019896,3]
[345443472,1734262241354,-2334.83,0.00019896,3]
[345443474,1734262241363,-500.0,0.00019896,3]
[345443476,1734262241373,-763.19,0.00019896,3]
[345443478,1734262241382,-500.0,0.00019896,3]
[345443480,1734262241392,-429.49127952,0.00019896,3]
[345443482,1734262241403,-70.50872048,0.00019896,3]
[345443484,1734262241412,-510.62504394,0.00019896,3]
[345443487,1734262241422,-108596.3738,0.00019897,2]
[345443488,1734262241431,-175.83007294,0.00019898,2]
[345443490,1734262241441,-2603.50597495,0.00019898,2]
[345443491,1734262241450,-771.36618168,0.00019898,2]
[345443493,1734262241459,-153.64504024,0.00019899,2]
[345443495,1734262241468,-1000.0,0.000199,2]
[345443497,1734262241477,-761.49019823,0.000199,2]
[345443499,1734262241486,-181.10577684,0.000199,2]
[345443501,1734262241496,-451.877213,0.000199,3]
[345443503,1734262241505,-1486.877,0.00019911,2]
[345443505,1734262241515,-150.0,0.00019927,2]
[345443507,1734262241524,-280.35258484,0.00019929,2]
[345443509,1734262241533,-150.0,0.00019949,2]
[345443511,1734262241542,-150.0,0.00019954,2]
[345443513,1734262241551,-150.0,0.00019963,2]
[345443515,1734262241560,-150.0,0.00019966,2]
[345443516,1734262241571,-435.72564607,0.00019973,2]
[345443518,1734262241581,-500.0,0.0001999,3]
[345443520,1734262241591,-500.0,0.0001999,3]
[345443522,1734262241600,-500.0,0.0001999,3]
[345443524,1734262241610,-500.0,0.0001999,3]
[345443526,1734262241619,-500.0,0.0001999,3]
[345443528,1734262241628,-500.0,0.0001999,3]
[345443530,1734262241638,-500.0,0.0001999,3]
[345443532,1734262241647,-155.76169721,0.0001999,3]
[345443534,1734262241657,-500.0,0.0001999,3]
[345443536,1734262241667,-500.0,0.0001999,3]
[345443538,1734262241676,-500.0,0.0001999,3]
[345443540,1734262241685,-500.0,0.0001999,3]
[345443542,1734262241695,-500.0,0.0001999,3]
[345443544,1734262241705,-500.0,0.0001999,3]
[345443546,1734262241715,-500.0,0.0001999,3]
[345443548,1734262241725,-500.0,0.0001999,3]
[345443550,1734262241749,-500.0,0.00019991,3]
[345443552,1734262241770,-500.0,0.00019991,3]
[345443554,1734262241779,-571.71,0.00019991,3]
[345443556,1734262241788,-170.09110961,0.00019991,3]
[345443558,1734262241799,-500.0,0.00019991,3]
[345443560,1734262241808,-500.0,0.00019993,3]
[345443562,1734262241818,-500.0,0.00019993,3]
[345443564,1734262241829,-500.0,0.00019993,3]
[345443566,1734262241838,-500.0,0.00019993,3]
[345443568,1734262241847,-500.0,0.00019993,3]
[345443570,1734262241857,-500.0,0.00019993,3]
[345443572,1734262241867,-187.319354,0.00019993,3]
[345443574,1734262241879,-1075.69,0.00019993,3]
[345443575,1734262241890,-500.0,0.00019993,3]
[345443578,1734262241900,-500.0,0.00019993,3]
[345443579,1734262241910,-500.0,0.00019993,3]
[345443581,1734262241919,-500.0,0.00019993,3]
[345443583,1734262241930,-500.0,0.00019993,3]
[345443585,1734262241940,-500.0,0.00019993,3]
[345443587,1734262241951,-500.0,0.00019993,3]
[345443589,1734262241962,-500.0,0.00019993,3]
[345443591,1734262241972,-500.0,0.00019993,3]
[345443593,1734262241982,-500.0,0.00019993,3]
[345443595,1734262241991,-500.0,0.00019993,3]
[345443597,1734262242000,-500.0,0.00019993,3]
[345443599,1734262242009,-500.0,0.00019993,3]
[345443601,1734262242019,-500.0,0.00019993,3]
[345443603,1734262242028,-954.0,0.00019993,3]
[345443605,1734262242037,-989.51,0.00019993,3]
[345443607,1734262242047,-500.0,0.00019993,3]
[345443609,1734262242056,-500.0,0.00019993,3]
[345443611,1734262242065,-500.0,0.00019993,3]
[345443613,1734262242076,-608.74,0.00019993,3]
[345443615,1734262242086,-583.41,0.00019993,3]
[345443617,1734262242095,-500.0,0.00019993,3]
[345443619,1734262242105,-500.0,0.00019993,3]
[345443621,1734262242114,-500.0,0.00019993,3]
[345443623,1734262242124,-543.86,0.00019993,3]
[345443625,1734262242133,-500.0,0.00019993,3]
[345443627,1734262242143,-375.65228402,0.00019993,3]
[345443629,1734262242152,-500.0,0.00019993,3]
[345443631,1734262242161,-256.3461467,0.00019993,3]
[345443634,1734262242182,-596.0138533,0.00019993,3]
[345443636,1734262242191,-403.9861467,0.00019993,30]
[345443638,1734262242203,-2255.31511274,0.00019993,30]
[345443641,1734262242215,-492.33874056,0.00019993,30]
[345443643,1734262242224,-500.0,0.00019993,3]
[345443645,1734262242235,-3507.22,0.00019993,3]
[345443647,1734262242267,-669.89,0.00019993,3]
[345443649,1734262242285,-500.0,0.00019993,3]
[345443651,1734262242295,-500.0,0.00019993,3]
[345443653,1734262242305,-500.0,0.00019993,3]
[345443655,1734262242314,-500.0,0.00019993,3]
[345443657,1734262242324,-500.0,0.00019993,3]
[345443659,1734262242333,-620.22,0.00019993,3]
[345443660,1734262242342,-455.0161467,0.00019993,3]
[345443663,1734262242354,-44.9838533,0.00019993,3]
[345443665,1734262242364,-1000.22,0.00019993,3]
[345443667,1734262242374,-500.0,0.00019993,3]
[345443669,1734262242383,-185.6421067,0.00019993,3]
[345443672,1734262242401,-7751.8878933,0.00019993,3]
[345443674,1734262242411,-2238.91,0.00019993,3]
[345443676,1734262242420,-500.0,0.00019993,3]
[345443678,1734262242429,-701.14,0.00019993,3]
[345443680,1734262242439,-500.0,0.00019993,3]
[345443682,1734262242448,-500.0,0.00019993,3]
[345443684,1734262242457,-500.0,0.00019993,3]
[345443686,1734262242466,-1036.47,0.00019993,3]
[345443688,1734262242475,-872.25,0.00019993,3]
[345443690,1734262242484,-500.0,0.00019993,3]
[345443692,1734262242494,-500.0,0.00019993,3]
[345443694,1734262242503,-1183.84,0.00019993,3]
[345443696,1734262242513,-743.98,0.00019993,3]
[345443698,1734262242522,-500.0,0.00019993,3]
[345443700,1734262242531,-708.81,0.00019993,3]
[345443702,1734262242540,-655.38929767,0.00019993,3]
[345443704,1734262242552,-250.45070233,0.00019993,3]
[345443706,1734262242562,-15.91429767,0.00019993,3]
[345443708,1734262242575,-484.08570233,0.00019993,3]
[345443710,1734262242584,-784.6,0.00019993,3]
[345443712,1734262242593,-1210.36,0.00019993,3]
[345443714,1734262242603,-500.0,0.00019993,3]
[345443716,1734262242612,-500.0,0.00019993,3]
[345443718,1734262242622,-500.0,0.00019993,3]
[345443720,1734262242631,-1311.36,0.00019993,3]
[345443739,1734262242804,-395.38186508,0.00019993,3]
[345443741,1734262242815,-500.0,0.00019993,3]
[345443743,1734262242825,-621.25,0.00019993,3]
[345443745,1734262242834,-573.44,0.00019993,3]
[345443747,1734262242844,-500.0,0.00019993,3]
[345443749,1734262242854,-1823.37,0.00019993,3]
[345443751,1734262242864,-500.0,0.00019993,3]
[345443754,1734262242874,-793.54,0.00019993,3]
[345443755,1734262242888,-500.0,0.00019993,3]
[345443758,1734262242897,-573.61,0.00019993,3]
[345443760,1734262242908,-540.00828748,0.00019993,3]
[345443762,1734262242918,-500.0,0.00019993,3]
[345443764,1734262242930,-500.0,0.00019993,3]
[345443766,1734262242940,-500.0,0.00019993,3]
[345443768,1734262242950,-1195.89,0.00019993,3]
[345443771,1734262242961,-500.0,0.00019993,3]
[345443774,1734262242971,-628.03,0.00019993,3]
[345443776,1734262242980,-697.13,0.00019993,3]
[345443778,1734262242990,-1078.47,0.00019993,3]
[345443780,1734262243000,-500.0,0.00019993,3]
[345443782,1734262243010,-500.0,0.00019993,3]
[345443783,1734262243019,-531.43,0.00019993,3]
[345443784,1734262243028,-500.0,0.00019993,3]
[345443785,1734262243038,-1161.14,0.00019993,3]
[345443786,1734262243048,-600.48,0.00019993,3]
[345443787,1734262243058,-1728.71,0.00019993,3]
[345443788,1734262243068,-747.88,0.00019993,3]
[345443789,1734262243080,-500.0,0.00019993,3]
[345443790,1734262243089,-500.0,0.00019993,3]
[345443791,1734262243099,-500.0,0.00019993,3]
[345443792,1734262243109,-940.88,0.00019993,3]
[345443794,1734262243119,-3578.55477808,0.00019993,3]
[345443799,1734262243131,-809.91442546,0.00019993,3]
[345443802,1734262243143,-419.15079646,0.00019993,3]
[345443804,1734262243152,-500.0,0.00019993,3]
[345443806,1734262243161,-427.84920354,0.00019993,3]
[345443828,1734262243374,-513.02181995,0.00018995,2]
[345443832,1734262243395,-118.97818005,0.00018995,2]
[345443834,1734262243405,-72.15079646,0.00019993,3]
[345443836,1734262243413,-500.0,0.00019993,3]
[345443838,1734262243422,-796.15,0.00019993,3]
[345443839,1734262243432,-500.0,0.00019993,3]
[345443841,1734262243441,-559.87,0.00019993,3]
[345443843,1734262243452,-500.0,0.00019993,3]
[345443845,1734262243460,-500.0,0.00019993,3]
[345443847,1734262243469,-500.0,0.00019993,3]
[345443849,1734262243478,-664.3,0.00019993,3]
[345443851,1734262243487,-500.0,0.00019993,3]
[345443853,1734262243497,-616.32,0.00019993,3]
[345443855,1734262243506,-360.63724591,0.00019993,3]
[345443858,1734262243518,-139.36275409,0.00019993,3]
[345443860,1734262243527,-500.0,0.00019993,3]
[345443862,1734262243537,-500.0,0.00019993,3]
[345443864,1734262243546,-546.94968596,0.00019993,3]
[345443866,1734262243555,-2270.47,0.00019993,3]
[345443868,1734262243564,-647.06,0.00019993,3]
[345443870,1734262243575,-500.0,0.00019993,3]
[345443872,1734262243585,-2334.83,0.00019993,3]
[345443874,1734262243594,-500.0,0.00019993,3]
[345443876,1734262243603,-1000.0,0.00019993,3]
[345443878,1734262243613,-763.19,0.00019993,3]
[345443880,1734262243622,-511.56,0.00019993,3]
[345443882,1734262243632,-500.0,0.00019993,3]
[345443884,1734262243642,-500.0,0.00019993,3]
[345443886,1734262243652,-500.0,0.00019993,3]
[345443888,1734262243662,-176.38122755,0.00019993,3]
[345443890,1734262243672,-1913.06,0.00019993,3]
[345443892,1734262243681,-500.0,0.00019994,3]
[345443894,1734262243691,-282.21,0.00019994,3]
[345443896,1734262243700,-478.31923259,0.00019994,3]
[345443899,1734262243720,-21.68076741,0.00019994,3]
[345443901,1734262243730,-500.0,0.00019994,3]
[345443903,1734262243739,-108.16837846,0.00019994,3]
[345443906,1734262243751,-391.83162154,0.00019994,3]
[345443909,1734262243760,-500.0,0.00019994,3]
[345443911,1734262243769,-500.0,0.00019994,3]
[345443913,1734262243779,-500.0,0.00019994,3]
[345443915,1734262243788,-500.0,0.00019994,3]
[345443917,1734262243798,-500.0,0.00019994,3]
[345443919,1734262243807,-500.0,0.00019994,3]
[345443921,1734262243816,-500.0,0.00019994,3]
[345443923,1734262243827,-500.0,0.00019994,3]
[345443925,1734262243836,-500.0,0.00019994,3]
[345443927,1734262243846,-500.0,0.00019994,3]
[345443929,1734262243855,-150.0,0.00019994,2]
[345443931,1734262243865,-500.0,0.00019994,3]
[345443933,1734262243875,-500.0,0.00019994,3]
[345443935,1734262243890,-500.0,0.00019994,3]
[345443937,1734262243900,-500.0,0.00019994,3]
[345443939,1734262243909,-500.0,0.00019994,3]
[345443941,1734262243920,-500.0,0.00019994,3]
[345443943,1734262243929,-500.0,0.00019994,3]
[345443945,1734262243939,-500.0,0.00019994,3]
[345443947,1734262243948,-500.0,0.00019994,3]
[345443949,1734262243959,-36.03739023,0.00019994,3]
[345443955,1734262244032,-346.98461568,0.00019994,3]
[345444173,1734262246201,-682.17938363,0.00019895,3]
[345444175,1734262246213,-99.15061637,0.00019895,3]
[345444177,1734262246223,-655.02187049,0.00019895,2]
[345444179,1734262246232,-500.0,0.00019896,3]
[345444181,1734262246241,-781.33,0.00019993,3]
[345444182,1734262246250,-116.97799409,0.00019994,3]
[345444183,1734262246259,-500.0,0.00019994,3]
[345444184,1734262246268,-500.0,0.00019994,3]
[345444185,1734262246277,-500.0,0.00019994,3]
[345444186,1734262246287,-500.0,0.00019994,3]
[345444187,1734262246296,-186.06146659,0.00019994,3]
[345444188,1734262246305,-500.0,0.00019994,3]
[345444190,1734262246314,-528.91,0.00019994,3]
[345444192,1734262246323,-121.32080568,0.00019994,3]
[345444194,1734262246342,-378.67919432,0.00019994,3]
[345444196,1734262246352,-500.0,0.00019994,3]
[345444198,1734262246362,-500.0,0.00019994,3]
[345444200,1734262246372,-217.58,0.00019994,3]
[345444203,1734262246382,-500.0,0.00019994,3]
[345444205,1734262246391,-138.44080578,0.00019995,3]
[345444207,1734262246403,-361.55919422,0.00019995,3]
[345444209,1734262246412,-500.0,0.00019995,3]
[345444211,1734262246422,-571.71,0.00019995,3]
[345444213,1734262246431,-500.0,0.00019995,3]
[345444215,1734262246441,-500.0,0.00019995,3]
[345444217,1734262246450,-500.0,0.00019995,3]
[345444219,1734262246459,-500.0,0.00019995,3]
[345444221,1734262246468,-500.0,0.00019995,3]
[345444223,1734262246477,-500.0,0.00019995,3]
[345444225,1734262246486,-347.04194335,0.00019995,3]
[345444227,1734262246496,-464.21968966,0.00019995,3]
[345444229,1734262246505,-500.0,0.00019995,3]
[345444231,1734262246515,-500.0,0.00019995,3]
[345444233,1734262246524,-500.0,0.00019995,3]
[345444235,1734262246533,-500.0,0.00019995,3]
[345444237,1734262246546,-170.5363342,0.00019995,3]
[345444240,1734262246560,-500.0,0.00019995,3]
[345444242,1734262246571,-500.0,0.00019995,3]
[345444244,1734262246583,-324.0457447,0.00019995,3]
[345444246,1734262246594,-500.0,0.00019996,3]
[345444248,1734262246604,-500.0,0.00019996,3]
[345444251,1734262246615,-500.0,0.00019996,3]
[345444253,1734262246626,-152.193451,0.00019996,2]
[345444255,1734262246638,-500.0,0.00019996,3]
[345444257,1734262246649,-503.5,0.00019996,3]
[345444260,1734262246661,-571.71,0.00019996,3]
[345444262,1734262246672,-500.0,0.00019996,3]
[345444265,1734262246684,-544.39102083,0.00019996,3]
[345444267,1734262246695,-500.0,0.00019996,3]
[345444270,1734262246707,-500.0,0.00019996,3]
[345444272,1734262246718,-500.0,0.00019996,3]
[345444274,1734262246728,-500.0,0.00019996,3]
[345444276,1734262246739,-500.0,0.00019996,3]
[345444278,1734262246748,-500.0,0.00019996,3]
[345444280,1734262246758,-500.0,0.00019996,3]
[345444282,1734262246770,-315.3,0.00019996,3]
[345444285,1734262246782,-150.0,0.00019996,3]
[345444287,1734262246793,-187.319354,0.00019996,3]
[345444289,1734262246804,-1075.69,0.00019996,3]
[345444291,1734262246816,-500.0,0.00019996,3]
[345444294,1734262246828,-500.0,0.00019996,3]
[345444296,1734262246841,-500.0,0.00019996,3]
[345444298,1734262246851,-304.779315,0.00019996,2]
[345444300,1734262246863,-500.0,0.00019996,3]
[345444303,1734262246876,-304.779315,0.00019996,2]
[345444305,1734262246891,-500.0,0.00019996,3]
[345444307,1734262246903,-500.0,0.00019996,3]
[345444310,1734262246916,-165.78331011,0.00019996,3]
[345444312,1734262246927,-500.0,0.00019996,3]
[345444314,1734262246939,-151.0,0.00019996,2]
[345444316,1734262246950,-500.0,0.00019996,3]
[345444318,1734262246963,-500.0,0.00019996,3]
[345444321,1734262246975,-500.0,0.00019996,3]
[345444323,1734262246985,-500.0,0.00019996,3]
[345444325,1734262246996,-500.0,0.00019996,3]
[345444327,1734262247007,-500.0,0.00019996,3]
[345444329,1734262247019,-500.0,0.00019996,3]
[345444332,1734262247030,-500.0,0.00019996,3]
[345444334,1734262247041,-500.0,0.00019996,3]
[345444336,1734262247052,-954.0,0.00019996,3]
[345444338,1734262247063,-989.51,0.00019996,3]
[345444340,1734262247075,-500.0,0.00019996,3]
[345444342,1734262247085,-500.0,0.00019996,3]
[345444344,1734262247096,-438.74304745,0.00019996,3]
[345444346,1734262247106,-500.0,0.00019996,3]
[345444349,1734262247119,-368.11,0.00019996,3]
[345444351,1734262247131,-608.74,0.00019996,3]
[345444353,1734262247143,-500.0,0.00019996,3]
[345444355,1734262247153,-583.41,0.00019996,3]
[345444357,1734262247162,-360.19809668,0.00019996,3]
[345444359,1734262247172,-500.0,0.00019996,3]
[345444361,1734262247182,-298.313233,0.00019996,2]
[345444363,1734262247193,-500.0,0.00019996,3]
[345444366,1734262247204,-500.0,0.00019996,3]
[345444368,1734262247216,-151.0,0.00019996,2]
[345444370,1734262247227,-500.0,0.00019996,3]
[345444372,1734262247237,-500.0,0.00019996,3]
[345444374,1734262247247,-543.86,0.00019996,3]
[345444376,1734262247257,-500.0,0.00019996,3]
[345444378,1734262247268,-528.91,0.00019996,3]
[345444380,1734262247278,-500.0,0.00019996,3]
[345444383,1734262247290,-500.0,0.00019996,3]
[345444385,1734262247300,-3151.64,0.00019996,30]
[345444387,1734262247312,-669.89,0.00019996,3]
[345444389,1734262247325,-500.0,0.00019996,3]
[345444391,1734262247337,-347.41914168,0.00019996,3]
[345444394,1734262247348,-500.0,0.00019996,3]
[345444396,1734262247359,-500.0,0.00019996,3]
[345444398,1734262247371,-500.0,0.00019996,3]
[345444400,1734262247382,-500.0,0.00019996,3]
[345444402,1734262247393,-620.22,0.00019996,3]
[345444404,1734262247403,-500.0,0.00019996,3]
[345444407,1734262247414,-1000.22,0.00019996,3]
[345444409,1734262247424,-500.0,0.00019996,3]
[345444411,1734262247435,-2083.81945,0.00019996,2]
[345444413,1734262247445,-867.68970132,0.00019996,3]
[345444416,1734262247464,-5008.17589993,0.00019996,3]
[345444418,1734262247478,-2061.66439875,0.00019996,3]
[345444420,1734262247489,-453.64218324,0.00019996,3]
[345444423,1734262247502,-251.73420491,0.00019996,3]
[345445644,1734262281579,42477.73817242,0.00015,2]
[345445645,1734262281625,181135.26182758,0.00015,2]
[345445647,1734262532804,5562.0,0.00015,3]
[345445648,1734262545487,268.11,0.00010137,2]
[345445678,1734262745230,450.0,0.00013,2]
[345445679,1734262746320,500.0,0.00015,2]
[345445680,1734262749977,5562.0,0.00015,5]
[345445688,1734262802372,150.0,0.00015,2]
[345445689,1734262802560,150.0,0.00015,2]
[345445690,1734262802739,150.0,0.00015,2]
[345445691,1734262802930,150.0,0.00015,2]
[345445692,1734262803140,150.0,0.00015,2]
[345445693,1734262803647,150.0,0.00015,2]
[345445694,1734262803755,150.0,0.00015,2]
[345445695,1734262803951,150.0,0.00015,2]
[345445696,1734262806442,150.0,0.00015,2]
[345445697,1734262806657,150.0,0.00015,2]
[345445698,1734262806842,150.0,0.00015,2]
[345445699,1734262807024,150.0,0.00015,2]
[345445700,1734262807449,150.0,0.00015,2]
[345445701,1734262807646,150.0,0.00015,2]
[345445702,1734262807855,150.0,0.00015,2]
[345445703,1734262808037,150.0,0.00015,2]
[345445704,1734262808282,150.0,0.00015,2]
[345445705,1734262808481,150.0,0.00015,2]
[345445706,1734262808749,150.0,0.00015,2]
[345445707,1734262808925,271.47440423,0.00015,2]
[345445744,1734263283633,324.75063286,1e-05,2]
[345445750,1734263432393,-502.4,0.00016713,2]
[345445751,1734263432477,-386.93,0.00016713,2]
[345445752,1734263432515,-2220.80365626,0.00016713,2]
[345445753,1734263432524,-791.54,0.00016765,2]
[345445754,1734263432534,-268.11,0.00016813,2]
[345445755,1734263432544,-550.0,0.00017,2]
[345445756,1734263432554,-183.454592,0.0001738,2]
[345445757,1734263432565,-183.454592,0.0001738,2]
[345445758,1734263432576,-500.0,0.00017568,2]
[345445759,1734263432585,-800.49,0.00018156,2]
[345445760,1734263432595,-300.0,0.0001832,2]
[345445761,1734263432606,-45099.72,0.00018321,2]
[345445762,1734263432616,-150.0,0.00018329,2]
[345445763,1734263432625,-61619.92,0.00018346,2]
[345445764,1734263432635,-250.0,0.00018567,2]
[345445765,1734263432645,-250.0,0.00018592,2]
[345445766,1734263432654,-500.0,0.00018664,2]
[345445767,1734263432663,-600.0,0.00018664,2]
[345445768,1734263432672,-500.0,0.00018668,2]
[345445769,1734263432682,-500.0,0.00018668,2]
[345445770,1734263432691,-627.72667762,0.00018668,2]
[345445771,1734263432702,-500.0,0.00018668,2]
[345445772,1734263432712,-150.0,0.00018669,2]
[345445773,1734263432721,-150.0,0.00018669,2]
[345445774,1734263432731,-150.0,0.00018669,2]
[345445775,1734263432741,-150.0,0.00018669,2]
[345445776,1734263432751,-150.0,0.00018669,2]
[345445777,1734263432760,-127999.83612495,0.00018669,2]
[345445778,1734263432771,-12254.26050754,0.00018669,2]